Cogmind - Beta 16 @@@ ROGUE MODE // 2025.12.28 @ 00:28:45 Player: Bity Result: Destroyed by QH-JHZ(R) with Subdweller Laser Performance ------------- Evolutions (0) 0 Regions Visited (2) 400 Robots Destroyed (31) 155 Value Destroyed (686) 686 Prototype IDs (2) 40 Alien Tech Used (0) 0 Bonus (0) 0 TOTAL SCORE: 1281 Bonus ------- None Cogmind --------- Core Integrity 0/250 Matter 3/300 Energy 69/100 System Corruption 4% Temperature Cool (6) Movement Rolling (120) Ox1 Location -10/Subcaves Parts ------- > --- POWER (1) -------- (None) > --- PROPULSION (2) --- Subdweller Monowheel > --- UTILITY (2) ------ Large Storage Unit > --- WEAPON (2) ------- EM Pulse Gun > --- INVENTORY (15) --- Light Ion Engine Improved Treads Improved Treads Subdweller Monowheel Disposable Heat Sink Visual Processing Unit Signal Interpreter Field Recycling Unit (0) Makeshift Shrapnel Gun Mini Grenade Launcher Subdweller Shrapnel Launcher Mining Laser Scrap Shield Fragment (47) Peak State ------------ > --- POWER ------------ Ion Engine > --- PROPULSION ------- Wheel Wheel > --- UTILITY ---------- Large Storage Unit Seismic Detector > --- WEAPON ----------- Mini Grenade Launcher Mini Grenade Launcher > --- INVENTORY -------- Light Ion Engine Light Ion Engine Improved Treads Improved Treads Wheel Wheel Wheel Visual Processing Unit Signal Interpreter Field Recycling Unit EM Pulse Gun Grenade Launcher Grenade Launcher Mini Grenade Launcher Mining Laser [Rating: 11] Favorites ----------- Power Ion Engine Engine Ion Engine Propulsion Wheel Leg Aluminum Leg Wheel Wheel Utility Seismic Detector Device Seismic Detector Storage Large Storage Unit Weapon EM Pulse Gun Energy Gun EM Pulse Gun Launcher Mini Grenade Launcher Special Weapon Mining Laser Build | -11 -10 -10 ------- Run | Yrd Mat Sub Slots Evolved . | . . . Power . | . . . Propulsion . | . . . Utility . | . . . Weapon . | . . . Parts Attached 21 | 3 7 11 Power 1 | . . 1 Engine 1 | . . 1 Core . | . . . Reactor . | . . . Propulsion 9 | 2 1 6 Treads . | . . . Leg . | . . . Wheel 9 | 2 1 6 Hover . | . . . Flight . | . . . Utility 3 | 1 2 . Device 1 | 1 . . Storage 2 | . 2 . Processor . | . . . Hackware . | . . . Protection . | . . . Artifact . | . . . Weapon 8 | . 4 4 Energy Gun 2 | . 1 1 Energy Cannon . | . . . Ballistic Gun . | . . . Ballistic Cannon . | . . . Launcher 5 | . 2 3 Special Weapon 1 | . 1 . Impact Weapon . | . . . Slashing Weapon . | . . . Piercing Weapon . | . . . Special Melee Weapon . | . . . Unidentified Prototypes . | . . . Parts Lost 12 | . . 12 Power 2 | . . 2 Propulsion 5 | . . 5 Utility 1 | . . 1 Weapon 4 | . . 4 Highest Loss Streak 3 | . . 3 To Critical Strikes 1 | . . 1 Average Backups 11 | 6 11 13 Power 1 | 1 1 1 Propulsion 3 | 3 4 3 Utility 2 | . 1 3 Weapon 4 | 2 3 4 Tool/Special . | . . . Unused Backups 23 | 5 7 11 Power 3 | . 1 2 Propulsion 8 | 5 1 2 Utility 6 | . 2 4 Weapon 6 | . 3 3 Tool/Special . | . . . Average Slot Usage (%) 93 | . 100 87 Engine 12 | . 14 10 Wheel 25 | . 28 23 Device 14 | . 14 14 Storage 14 | . 14 14 Energy Gun 11 | . 20 2 Launcher 13 | . 7 20 Peak Build Rating 11 | 7 10 11 Average Rating 8 | 6 8 8 On Entrance 7 | 6 7 10 Avg Prop Armor Cover (%) . | . . . Naked Turns . | . . . Heaviest Build 31 | 15 31 30 Greatest Support 30 | 20 20 30 Greatest Overweight (x) 2 | 1 1 2 Average Overweight (x) . | . . . Largest Inventory Capacity 15 | 8 15 15 Average Capacity 13 | 8 12 15 Most Carried 15 | 8 15 15 Average Carried 11 | 6 11 13 Final Capacity 15 | 8 15 15 Final Carried 15 | 8 15 13 Class Distribution -------------------- 100% | Mutant Dominant Class ---------------- Mutant | -10/Materials Mutant | -10/Subcaves Resources | -11 -10 -10 ----------- Run | Yrd Mat Sub Matter Collected 518 | 230 70 218 Remotely . | . . . Salvage Created 785 | 227 316 242 Parts 60 | 22 22 16 Haulers Intercepted 2 | . 2 . Recyclers Shooed . | . . . Parts Field Recycled . | . . . Retrieved Matter . | . . . Parts Self-Destructed 2 | . . 2 Prevented . | . . . Parts Restored . | . . . Kills | -11 -10 -10 ------- Run | Yrd Mat Sub Combat Hostiles Destroyed 16 | . 5 11 Guns 5 | . 4 1 AOE 11 | . 1 10 Classes Destroyed 9 | 3 5 1 Worker 2 | 2 . . Tunneler 5 | 5 . . Hauler 2 | . 2 . Recycler 2 | 1 1 . Operator 1 | . 1 . Watcher 3 | . 3 . Swarmer 3 | . 3 . Grunt 4 | . 2 2 Subdweller 9 | . . 9 Best Kill Streak 4 | 4 3 3 Combat Bots Only 3 | . 3 3 Max Kills in Single Turn 2 | 1 2 1 Gunslinging . | . . . Exploded 1 | . 1 1 Melee . | . . . Uniques/NPCs Destroyed . | . . . Combat | -11 -10 -10 -------- Run | Yrd Mat Sub Hostile Shots Fired 77 | . 15 62 Missed 19 | . 5 14 Hits 58 | . 10 48 Projectile 58 | . 10 48 Critical Strikes 4 | . . 4 Damage Taken 1175 | 24 167 984 Core 267 | . 59 208 Absorbed by Shields . | . . . Core Remaining (%) 100 | 100 . . Volleys Fired 59 | 12 17 30 Largest 2 | 2 2 2 Hottest 100 | 80 100 60 Shots Fired 100 | 24 33 43 Gun 58 | 24 24 10 Cannon . | . . . Launcher 41 | . 8 33 Special 1 | . 1 . Kinetic . | . . . Thermal 1 | . 1 . Explosive 41 | . 8 33 Electromagnetic 58 | 24 24 10 Robot Hit Streak 9 | 4 6 9 Robot Miss Streak 4 | 2 4 1 Penetration Max . | . . . Secondary Targets 1 | . 1 . Max Gunslinging Chain 1 | . 1 . Shots Hit Robots 60 | 12 18 30 Core Hits 45 | 8 15 22 Critical Kills . | . . . Critical Parts Destroyed . | . . . Critical Strikes 1 | . 1 . Corrupt 1 | . 1 . Melee Attacks . | . . . Impact . | . . . Slashing . | . . . Piercing . | . . . Sneak Attacks . | . . . Combat Hostiles . | . . . Follow-up Attacks . | . . . Damage Inflicted 2938 | 226 562 2150 Guns 481 | 158 218 105 Cannons . | . . . Explosions 2457 | 68 344 2045 Melee . | . . . Ramming . | . . . Kinetic . | . . . Thermal 214 | 68 93 53 Explosive 2243 | . 251 1992 Electromagnetic 481 | 158 218 105 Impact . | . . . Slashing . | . . . Piercing . | . . . Highest Corruption 4 | . 4 4 Average Corruption 3 | . 3 4 Corruption Purged . | . . . Corruption Blocked . | . . . Effects 15 | . 3 12 Message Errors 1 | . . 1 Matter Fused 5 | . 2 3 Heat Flow Errors 2 | . . 2 Energy Discharges 1 | . . 1 Parts Rejected 1 | . . 1 Data Loss (minor) 1 | . . 1 Data Loss (major) 4 | . 1 3 Overload Shots . | . . . Overflow Damage 21 | . 11 10 Projectiles . | . . . Explosions 21 | . 11 10 Melee . | . . . Knockbacks . | . . . Impact . | . . . Kinetic . | . . . Secondary . | . . . Self-Inflicted Damage 167 | 24 85 58 Shots 7 | 1 3 3 Rammed . | . . . Targets Rammed . | . . . Kicked . | . . . Crushed . | . . . Highest Temperature 134 | 54 72 134 Average Temperature 23 | 22 21 55 Received Heat Transfer 348 | . 6 342 Siege Activations . | . . . Martial Activations . | . . . Shielding Activations . | . . . Robots Disrupted . | . . . Combat Hostiles . | . . . Robots Corrupted . | . . . Combat Hostiles . | . . . Parts Fried 1 | . 1 . Impact Corruptions . | . . . Robots Melted . | . . . Combat Hostiles . | . . . Parts Melted . | . . . Heat Transferred 250 | 100 100 50 Parts Sabotaged . | . . . Parts Stolen . | . . . Parts Stripped . | . . . Power Chain Reactions 5 | 2 2 1 Alert | -11 -10 -10 ------- Run | Yrd Mat Sub Maximum Alert Level . | . . . Low Security (%) 100 | 100 100 . Level 1 . | . . . Level 2 . | . . . Level 3 . | . . . Level 4 . | . . . Level 5 . | . . . High Security . | . . . Max Security . | . . . Peak Influence 108 | 10 108 . Initial . | . . . Average 27 | 2 32 . Influence Increases 419 | 40 329 50 Destroy 0b10 Robot/C 140 | . 100 40 Destroy 0b10 Robot/NC 75 | 40 35 . Destroy Leader 40 | . 30 10 Successful Hack 42 | . 42 . Disable Machine 45 | . 45 . Destroy Structure 77 | . 77 . Influence Decreases 419 | 40 277 102 Entered New Map 26 | . . 26 Time Decay 348 | 40 242 66 Lost Part 10 | . . 10 Purge Threat 35 | . 35 . Squads Dispatched 2 | . 2 . Investigation 1 | . 1 . Extermination . | . . . Reinforcement 1 | . 1 . Assault . | . . . Garrison . | . . . Intercept . | . . . Searches Triggered . | . . . Construction Impeded . | . . . Haulers Reinforced . | . . . Active Scanning Responses . | . . . Cargo Convoy Interrupts . | . . . Stealth | -11 -10 -10 --------- Run | Yrd Mat Sub Distress Signals . | . . . Communications Jammed . | . . . Distress Signals . | . . . Times Spotted 22 | . 9 13 Peak Tracking Total 3 | . 3 2 Tactical Retreats . | . . . Traps | -11 -10 -10 ------- Run | Yrd Mat Sub Traps Triggered 2 | . 2 . Indirectly . | . . . Trap Hack Attempts . | . . . Triggered . | . . . Disarmed . | . . . Reprogrammed . | . . . Reused . | . . . Traps Extracted . | . . . Installed . | . . . Triggered . | . . . Machines | -11 -10 -10 ---------- Run | Yrd Mat Sub Machines Disabled 3 | . 3 . Max in Single Turn 1 | . 1 . Machines Repaired . | . . . Machines Dismantled . | . . . Machines Sabotaged . | . . . Overloaded Fab Kills . | . . . Hacking | -11 -10 -10 --------- Run | Yrd Mat Sub Machines Accessed 7 | . 7 . Terminals 5 | . 5 . Fabricators . | . . . Repair Stations . | . . . Recycling Units 2 | . 2 . Scanalyzers . | . . . Garrison Access . | . . . Total Hacks 28 | . 28 . Successful 18 | . 18 . Failed 10 | . 10 . Catastrophic 2 | . 2 . Database Lockouts . | . . . Manual 15 | . 15 . Terminals 26 | . 26 . Fabricators . | . . . Repair Stations . | . . . Recycling Units 2 | . 2 . Scanalyzers . | . . . Garrison Access . | . . . Terminal Hacks 10 | . 10 . Prototype ID Bank 1 | . 1 . Terminal Index 1 | . 1 . Scanalyzer Index 1 | . 1 . Alert Level 1 | . 1 . Unreport Threat 1 | . 1 . Locate Traps 1 | . 1 . Security Status 1 | . 1 . Zone Layout 3 | . 3 . Fabricator Hacks . | . . . Repair Station Hacks . | . . . Recycling Unit Hacks 2 | . 2 . Report Inventory 2 | . 2 . Scanalyzer . | . . . Garrison Access Hacks . | . . . Unauthorized Hacks 6 | . 6 . Terminals 6 | . 6 . Track 2 | . 2 . Botnet 4 | . 4 . Fabricators . | . . . Repair Stations . | . . . Recycling Units . | . . . Scanalyzers . | . . . Garrison Access . | . . . Data Cores Recovered . | . . . Used . | . . . Hacking Detections 4 | . 4 . Full Trace Events 2 | . 2 . Feedback Events . | . . . Feedback Blocked . | . . . Robot Schematics Acquired . | . . . Robots Built . | . . . Authchips . | . . . Time . | . . . Total Robot Build Rating . | . . . Part Schematics Acquired . | . . . Parts Built . | . . . Authchips . | . . . Time . | . . . Total Part Build Rating . | . . . Part Studies Acquired . | . . . Parts Repaired . | . . . Time . | . . . Parts Recycled . | . . . Recycled Matter . | . . . Retrieved Matter . | . . . Retrieved Components . | . . . Parts Scanalyzed . | . . . Part Schematics Acquired . | . . . Parts Damaged . | . . . Bothacking | -11 -10 -10 ------------ Run | Yrd Mat Sub Used RIF Installer . | . . . Robots Hacked . | . . . Non-combat . | . . . Combat . | . . . Robot Hacks Applied . | . . . Relay Couplers Released . | . . . Fabnet Peak Effective % . | . . . Robots Rewired . | . . . Allies Hacked . | . . . Hacks Repelled . | . . . Allies | -11 -10 -10 -------- Run | Yrd Mat Sub Total Allies . | . . . Largest Group . | . . . Highest-Rated Group . | . . . Highest-Rated Ally . | . . . Total Orders . | . . . Ally Attacks . | . . . Total Damage . | . . . Kills . | . . . Allies Corrupted . | . . . Allies Melted . | . . . Intel | -11 -10 -10 ------- Run | Yrd Mat Sub Active Infowar (turns) 1464 | 116 683 665 Seismic 1464 | 116 683 665 Robot Analysis Total . | . . . Derelict Logs Recovered 1 | . . 1 Drone Launches . | . . . Drone Recoveries . | . . . Exploration | -11 -10 -10 ------------- Run | Yrd Mat Sub Turns Passed 1498 | 148 683 667 Spaces Moved 1052 | 60 512 480 Core . | . . . Treads . | . . . Legs 22 | 22 . . Wheels 1030 | 38 512 480 Hover . | . . . Flight . | . . . Fastest Speed 80 | 80 80 95 Average Speed 93 | 94 87 99 Slowest Speed 120 | 120 95 120 Overloaded Moves . | . . . Propulsion Burnouts . | . . . Robots Hopped . | . . . Potential Cave-ins . | . . . Cave-ins Triggered . | . . . Exploration Rate (%) 38 | 3 84 29 Regions Visited 2 Branch Regions 1 Pre-discovered Areas 1 | . . 1 Known Exits Taken . | . . . Unknown Exits Taken 2 | 1 1 . Scrap Searched . | . . . Spaces Dug 6 | . 6 . Terrain Destroyed 231 | 8 78 145 Melee . | . . . Projectile . | . . . AOE 231 | 8 78 145 Terrain Rammed . | . . . Walls Destroyed . | . . . Machines Disabled . | . . . Actions | -11 -10 -10 --------- Run | Yrd Mat Sub Total 1471 | 127 715 629 Wait 299 | 43 160 96 Move 1050 | 59 511 480 Hop . | . . . Pick Up 26 | 6 12 8 Fast Attach 2 | 1 . 1 Attach 8 | . . 8 Detach . | . . . Swap 13 | 2 7 4 Drop 14 | 4 8 2 Fire 59 | 12 17 30 Melee . | . . . Ram . | . . . Kick . | . . . Crush . | . . . Escape Stasis . | . . . Rewire . | . . . Trap . | . . . Miscellaneous . | . . . Route ------- -11/Scrapyard -10/Materials (discovered 5 exits: [*Mat x3] / [*Min] / [*Sub]) -10/Subcaves (discovered 1 exit: [*Mat]) History --------- Turn | Location | Event 1 | -11/Scrapyard | Discovered new exit (range 3) 149 | -11/Scrapyard | Entered Materials 210 | -10/Materials | Discovered new exit (range 14) 335 | -10/Materials | Build established: Mutant 427 | -10/Materials | Discovered new exit (range 15) 593 | -10/Materials | Discovered new exit (range 15) 686 | -10/Materials | Discovered new exit (range 15) 817 | -10/Materials | Discovered new exit (range 6) 832 | -10/Materials | Entered Subcaves 833 | -10/Subcaves | Approached by a straggling Scientist 960 | -10/Subcaves | Ambushed by Subdwellers from Twisted Machinery 1023 | -10/Subcaves | Discovered new exit (range 15) 1127 | -10/Subcaves | Lost 3 parts (1p1n1w) 1214 | -10/Subcaves | Lost 3 parts (2n1w) 1238 | -10/Subcaves | Core integrity fell below 50% 1445 | -10/Subcaves | Core integrity fell below 20% 1479 | -10/Subcaves | Learned location of Zion (-6) 1499 | -10/Subcaves | Destroyed by QH-JHZ(R) with Subdweller Laser Last Messages --------------- 01317_ Acquired Wheel. 01318_ System corrupted: Substantial component data lost. 01328_ Acquired Sub. Monowheel. 01333_ System corrupted: Matter fused (-8). 01369_ Acquired Sub. Monowheel. 01406_ The unstable cave ceiling collapses. 01407_ Grenade Launcher destroyed. 01409_ QH-JHZ(R): "ARGHSUB!" 01411_ System corrupted: Component data lost. 01413_ Wheel destroyed. 01442_ Acquired Disposable Heat Sink. 01444_ System corrupted: Wheel rejected. 01446_ Lgt. Ion Engine destroyed. 01476_ System corrupted: Heat flow error (+113). 01479_ Acquired derelict log, extracted data. World map updated: -6/Zion. 01489_ Critical hit (Destroy). 01489_ Grenade Launcher destroyed. 01497_ Seismic Detector destroyed. Map ----- +----------------------------------------------------+ | # #??????????????????????????????????????? | | ### ##?????????????????????????????????????? | | # #?????????????????????????????????????? | | # #????????????????????????????????????? | | ###### #????????????????????????????????????? | | ?????# ##????????????????????????????????????? | | ?????### ##?????????????????????????????????????? | | ????????###??????????????????????????????????????? | | ?????????????????????????????????????????????????? | | ?????????????????????????????????????????????????? | | ?????????????????????????????????????????????????? | | ?????????????????????????????????????????????????? | | ?#####???????????????????????????????????????????? | | ? ##??????????????????????????????????????????? | | ? #??????????????????????????????????????????? | | ? #??????????????????????????????????????????? | | ?# #??????????????????????????????????????????? | | ## #???????????????????????????????????????????? | | #????????????????????????????????????????????? | | ##????????????????????????????????????????????? | | ##????????????????????????????????????????????? | | # ##?##???????????###???###????????????????????? | | # ## #???????????# ##### ####?????????????????? | | # #???##???????# #?????????????????? | | ### ##### #???????## #??????????????????? | | ??### ## #????????# @ R ##?????????????????? | | ????### ##???????######## #?????????????????? | | ??????##### ##?????????????# #?????????????????? | | ??????????# ##???????????## ##?????????????????? | | ??????????### ##??????????# #??????????????????? | | ????????????## ####?####### ##?????????????????? | | ?????????????# ## ## #?????????????????? | | ?????????????## ## #?????????????????? | | ??????????????### ##?????????????????? | | ????????????????# #?????########??### | | ????????????????## ""###??## # # #### | | ?????????????????### ## " #### # ### | | ???????????????????### # # #" # | | ?????????????????????### ## | | ???????????????????????# ### = | | ???????????????????????## # ## & # | | ????????????????????????###### #### # # """## | | ?????????????????????????????#####??# | | ????????????????????????????????????## ## | | ?????????????????????????????????????###### ## # | | ??????????????????????????????????????????# ##### | | ??????????????????????????????????????????####??# | | ????????????????????????????????????????????????# | | ??????????????????????????????????????????#?????## | | ??????????????????????????????????????????# #### | +----------------------------------------------------+ Best States ------------- Heat Dissipation 25 Energy Generation 10 Energy Capacity 250 Matter Stores 300 Matter Capacity 300 Sight Range 16 Terrain Scan Density 10 Evasion (%) 50 Item Schematics ----------------- None Robot Schematics ------------------ None Fabricated ------------ Nothing Repaired ---------- Nothing Studied --------- None Alien Tech Used ----------------- None Achievements -------------- None Challenges ------------ None Game ------ Seed AnalysisTripodParser Manual? 0 Play Time 00:17:04 Cumulative 39.9 hours Start 2025.12.28 @ 00:13:42 End 2025.12.28 @ 00:28:45 Sessions 1 Manual Loads 0 Difficulty Rogue Special Mode None Game No. 53 Rogue 53 Adventurer 0 Explorer 0 Win Type - Total 1 Types 1/0/0/0/0/0/0/0/0/0 Lore% 33 Gallery% 41 Achievement% 33 Wizard Run 0 Options --------- Layout 2 ASCII 0 Keyboard 1 Movement Numpad Keybinds 0 Fullscreen 1 Font 24/Smallcaps Map View 50x44 Zoom Use 0% Tactical HUD 1 Map Filters NONE Filters NONE Steam 1 RUN: 1373223e-0c4c-481b-a9f1-d3b05decb605